fUSD/lending_fUSD_20241215
["ID","MTS","AMOUNT","RATE_DAILY","PERIOD"]
[345431051,1734253288912,579.05995983,0.00013698,2]
[345431052,1734253291305,500.0,0.00013698,2]
[345431053,1734253291636,500.0,0.00013698,2]
[345431054,1734253291928,500.0,0.00013698,2]
[345431055,1734253292202,402.28,0.00013698,2]
[345431056,1734253337959,358.38,0.00010137,2]
[345431058,1734253580291,450.0,0.00013,2]
[345431059,1734253581813,500.0,0.00015,2]
[345431060,1734253637359,318.20696997,0.00014925,2]
[345431069,1734253831960,-300.0,0.00016364,2]
[345431070,1734253831970,-104.92261432,0.00016365,2]
[345431071,1734253831982,-522.8936916,0.00016365,2]
[345431072,1734253832229,-359.14369408,0.00016365,2]
[345431073,1734253832238,-1002.25,0.00016365,2]
[345431074,1734253832247,-1009.35,0.00016365,2]
[345431075,1734253832257,-1001.6,0.00016365,2]
[345431076,1734253832266,-1004.84,0.00016365,2]
[345431077,1734253832275,-1002.74,0.00016365,2]
[345431078,1734253832284,-1018.22,0.00016365,2]
[345431079,1734253832293,-1016.11,0.00016365,2]
[345431080,1734253832302,-1011.23,0.00016365,2]
[345431081,1734253832311,-1011.64,0.00016365,2]
[345431082,1734253832319,-989.47,0.00016365,2]
[345431083,1734253832329,-983.88,0.00016365,2]
[345431084,1734253832338,-1011.35,0.00016365,2]
[345431085,1734253832347,-1019.1,0.00016365,2]
[345431086,1734253832356,-312.42647861,0.00016365,2]
[345431087,1734253832371,-704.40352139,0.00016365,2]
[345431088,1734253832379,-982.74,0.00016366,2]
[345431089,1734253832388,-983.4,0.00016366,2]
[345431090,1734253832397,-487.84,0.00016366,2]
[345431091,1734253832406,-202.6,0.00016366,2]
[345431092,1734253832416,-988.95,0.00016366,2]
[345431093,1734253832425,-982.05,0.00016366,2]
[345431094,1734253832434,-1013.91,0.00016366,2]
[345431095,1734253832443,-991.08,0.00016366,2]
[345431096,1734253832454,-990.68,0.00016366,2]
[345431097,1734253832463,-990.54,0.00016366,2]
[345431098,1734253832472,-892.17308915,0.00016366,2]
[345431099,1734253832483,-110.85691085,0.00016366,2]
[345431100,1734253832492,-886.70868515,0.00016366,2]
[345431111,1734253837903,-118.22131485,0.00016366,2]
[345431112,1734253837913,-1015.48,0.00016366,2]
[345431113,1734253837922,-1000.7,0.00016366,2]
[345431114,1734253837931,-1012.92,0.00016366,2]
[345431115,1734253837940,-996.51,0.00016366,2]
[345431116,1734253837949,-987.56,0.00016366,2]
[345431117,1734253837966,-993.95,0.00016366,2]
[345431118,1734253837975,-1009.3,0.00016366,2]
[345431119,1734253837985,-998.35,0.00016366,2]
[345431120,1734253837995,-500.0,0.00016472,2]
[345431121,1734253838005,-1300.0,0.00016472,2]
[345431122,1734253838015,-827.25,0.00016657,2]
[345431123,1734253838024,-358.38,0.00016813,2]
[345431124,1734253838033,-550.0,0.00017,2]
[345431125,1734253838042,-393.14,0.00017412,2]
[345431126,1734253838052,-250.0,0.00017491,2]
[345431127,1734253838062,-500.0,0.00017568,2]
[345431128,1734253838072,-1300.0,0.00017568,2]
[345431129,1734253838082,-250.0,0.00017723,2]
[345431130,1734253838091,-198.06,0.00017959,2]
[345431131,1734253838101,-250.0,0.00018026,2]
[345431132,1734253838110,-224.84,0.00018078,2]
[345431133,1734253838119,-267.63804286,0.00018238,2]
[345431134,1734253838132,-58.59195714,0.00018238,2]
[345431135,1734253838141,-6231.06082048,0.00018291,2]
[345431136,1734253838152,-805.99158132,0.00018291,2]
[345431137,1734253838163,-8022.55809209,0.00018291,2]
[345431141,1734253841603,-783.988005,0.00016365,2]
[345431142,1734253841616,-229.231995,0.00016365,2]
[345431143,1734253841625,-286.728005,0.00018291,2]
[345431144,1734253841658,-788.9913428,0.00018291,2]
[345431145,1734253842162,-7764.67015831,0.00018291,2]
[345431146,1734253842171,-1000.0,0.00018343,2]
[345431147,1734253842181,-1757.52,0.0001846,2]
[345431148,1734253842190,-501.01,0.0001856,2]
[345431149,1734253842200,-500.0,0.00018664,2]
[345431150,1734253842211,-1300.0,0.00018664,2]
[345431151,1734253842220,-404.43667664,0.00018664,2]
[345431152,1734253842230,-326.23,0.00018913,2]
[345431153,1734253842239,-827.25,0.00018921,2]
[345431154,1734253842249,-428.19118329,0.00018978,2]
[345431155,1734253842259,-1000.0,0.00019,2]
[345431156,1734253842269,-283.86,0.00019,2]
[345431157,1734253842278,-600.0,0.00019,2]
[345431158,1734253842287,-2991.7119,0.00019078,2]
[345431159,1734253842295,-596.831,0.00019078,2]
[345431160,1734253842305,-200.0,0.000191,2]
[345431161,1734253842315,-26972.98979843,0.000191,2]
[345431162,1734253842326,-1575.43320157,0.000191,2]
[345431163,1734253842336,-101.66021447,0.00019177,2]
[345431169,1734253842950,-915.75978553,0.00019177,2]
[345431170,1734253842960,-6671.21032021,0.00019177,2]
[345431171,1734253842970,-248.19576721,0.00019177,2]
[345431172,1734253842979,-250.0,0.00019177,2]
[345431173,1734253842988,-500.0,0.00019178,2]
[345431174,1734253842998,-500.0,0.00019178,2]
[345431175,1734253843008,-500.0,0.00019178,2]
[345431176,1734253843017,-500.0,0.00019178,2]
[345431177,1734253843026,-307.29411013,0.00019178,2]
[345431178,1734253843038,-192.70588987,0.00019178,2]
[345431179,1734253843047,-500.0,0.00019178,2]
[345431180,1734253843058,-500.0,0.00019178,2]
[345431181,1734253843068,-500.0,0.00019178,2]
[345431182,1734253843077,-500.0,0.00019178,2]
[345431183,1734253843086,-500.0,0.00019178,2]
[345431184,1734253843096,-500.0,0.00019178,2]
[345431185,1734253843106,-500.0,0.00019178,2]
[345431186,1734253843115,-500.0,0.00019178,2]
[345431187,1734253843125,-500.0,0.00019178,2]
[345431188,1734253843134,-500.0,0.00019178,2]
[345431189,1734253843143,-500.0,0.00019178,2]
[345431190,1734253843152,-500.0,0.00019178,2]
[345431191,1734253843162,-500.0,0.00019178,2]
[345431192,1734253843171,-500.0,0.00019178,2]
[345431193,1734253843180,-500.0,0.00019178,2]
[345431194,1734253843190,-500.0,0.00019178,2]
[345431195,1734253843199,-500.0,0.00019178,2]
[345431196,1734253843207,-500.0,0.00019178,2]
[345431197,1734253843223,-500.0,0.00019178,2]
[345431198,1734253843232,-500.0,0.00019178,2]
[345431199,1734253843242,-500.0,0.00019178,2]
[345431200,1734253843252,-500.0,0.00019178,2]
[345431201,1734253843261,-500.0,0.00019178,2]
[345431202,1734253843270,-500.0,0.00019178,2]
[345431203,1734253843279,-500.0,0.00019178,2]
[345431204,1734253843288,-500.0,0.00019178,2]
[345431205,1734253843298,-500.0,0.00019178,2]
[345431206,1734253843308,-500.0,0.00019178,2]
[345431207,1734253843318,-500.0,0.00019178,2]
[345431208,1734253843327,-500.0,0.00019178,2]
[345431209,1734253843336,-500.0,0.00019178,2]
[345431210,1734253843345,-500.0,0.00019178,2]
[345431211,1734253843355,-500.0,0.00019178,2]
[345431212,1734253843365,-500.0,0.00019178,2]
[345431213,1734253843374,-500.0,0.00019178,2]
[345431214,1734253843384,-500.0,0.00019178,2]
[345431215,1734253843394,-500.0,0.00019178,2]
[345431216,1734253843403,-500.0,0.00019178,2]
[345431217,1734253843413,-232.50636259,0.00019178,2]
[345431218,1734253843423,-500.0,0.00019178,2]
[345431219,1734253843432,-500.0,0.00019178,2]
[345431220,1734253843441,-500.0,0.00019178,2]
[345431221,1734253843451,-500.0,0.00019178,2]
[345431222,1734253843461,-500.0,0.00019178,2]
[345431223,1734253843471,-500.0,0.00019178,2]
[345431224,1734253843482,-584.28,0.00019178,2]
[345431225,1734253843492,-500.0,0.00019178,2]
[345431226,1734253843502,-500.0,0.00019178,2]
[345431227,1734253843511,-500.0,0.00019178,2]
[345431228,1734253843521,-500.0,0.00019178,2]
[345431229,1734253843531,-500.0,0.00019178,2]
[345431230,1734253843540,-500.0,0.00019178,2]
[345431231,1734253843548,-500.0,0.00019178,2]
[345431232,1734253843558,-500.0,0.00019178,2]
[345431233,1734253843571,-500.0,0.00019178,2]
[345431234,1734253843581,-500.0,0.00019178,2]
[345431235,1734253843591,-500.0,0.00019178,2]
[345431236,1734253843600,-303.57,0.00019178,2]
[345431237,1734253843611,-500.0,0.00019178,2]
[345431238,1734253843620,-500.0,0.00019178,2]
[345431239,1734253843629,-638.11227435,0.00019178,2]
[345431240,1734253843640,-500.0,0.00019178,2]
[345431241,1734253843651,-459.14102223,0.00019178,2]
[345431242,1734253843661,-500.0,0.00019178,2]
[345431243,1734253843671,-500.0,0.00019178,2]
[345431244,1734253843680,-500.0,0.00019178,2]
[345431245,1734253843689,-500.0,0.00019178,2]
[345431246,1734253843699,-500.0,0.00019178,2]
[345431247,1734253843710,-500.0,0.00019178,2]
[345431248,1734253843719,-500.0,0.00019178,2]
[345431249,1734253843727,-500.0,0.00019178,2]
[345431250,1734253843737,-500.0,0.00019178,2]
[345431251,1734253843747,-500.0,0.00019178,2]
[345431252,1734253843757,-553.28,0.00019178,2]
[345431253,1734253843766,-500.0,0.00019178,2]
[345431254,1734253843776,-500.0,0.00019178,2]
[345431255,1734253843785,-500.0,0.00019178,2]
[345431256,1734253843794,-500.0,0.00019178,2]
[345431257,1734253843804,-500.0,0.00019178,2]
[345431258,1734253843814,-500.0,0.00019178,2]
[345431259,1734253843823,-500.0,0.00019178,2]
[345431260,1734253843833,-500.0,0.00019178,2]
[345431261,1734253843842,-500.0,0.00019178,2]
[345431262,1734253843854,-500.0,0.00019178,2]
[345431263,1734253843863,-500.0,0.00019178,2]
[345431264,1734253843874,-500.0,0.00019178,2]
[345431265,1734253843883,-500.0,0.00019178,2]
[345431266,1734253843892,-500.0,0.00019178,2]
[345431267,1734253843902,-500.0,0.00019178,2]
[345431268,1734253843911,-500.0,0.00019178,2]
[345431269,1734253843920,-379.48,0.00019178,2]
[345431270,1734253843930,-500.0,0.00019178,2]
[345431271,1734253843940,-500.0,0.00019178,2]
[345431272,1734253843949,-500.0,0.00019178,2]
[345431273,1734253843960,-500.0,0.00019178,2]
[345431274,1734253843970,-500.0,0.00019178,2]
[345431275,1734253843979,-500.0,0.00019178,2]
[345431276,1734253843989,-500.0,0.00019178,2]
[345431277,1734253843998,-622.25,0.00019178,2]
[345431278,1734253844008,-500.0,0.00019178,2]
[345431279,1734253844017,-500.0,0.00019178,2]
[345431280,1734253844027,-500.0,0.00019178,2]
[345431281,1734253844036,-500.0,0.00019178,2]
[345431282,1734253844045,-500.0,0.00019178,2]
[345431283,1734253844055,-500.0,0.00019178,2]
[345431284,1734253844064,-520.62,0.00019178,2]
[345431285,1734253844074,-500.0,0.00019178,2]
[345431286,1734253844084,-500.0,0.00019178,2]
[345431287,1734253844094,-500.0,0.00019178,2]
[345431288,1734253844103,-500.0,0.00019178,2]
[345431289,1734253844112,-458.22,0.00019178,2]
[345431290,1734253844122,-500.0,0.00019178,2]
[345431291,1734253844131,-236.87570448,0.00019178,2]
[345431292,1734253844141,-500.0,0.00019178,2]
[345431293,1734253844150,-500.0,0.00019178,2]
[345431294,1734253844160,-500.0,0.00019178,2]
[345431295,1734253844170,-500.0,0.00019178,2]
[345431296,1734253844180,-500.0,0.00019178,2]
[345431297,1734253844189,-500.0,0.00019178,2]
[345431298,1734253844198,-500.0,0.00019178,2]
[345431299,1734253844207,-500.0,0.00019178,2]
[345431300,1734253844217,-500.0,0.00019178,2]
[345431301,1734253844227,-500.0,0.00019178,2]
[345431302,1734253844236,-500.0,0.00019178,2]
[345431303,1734253844245,-500.0,0.00019178,2]
[345431304,1734253844255,-500.0,0.00019178,2]
[345431305,1734253844264,-500.0,0.00019178,2]
[345431306,1734253844274,-285.15,0.00019178,2]
[345431307,1734253844283,-500.0,0.00019178,2]
[345431308,1734253844292,-500.0,0.00019178,2]
[345431309,1734253844302,-500.0,0.00019178,2]
[345431310,1734253844311,-500.0,0.00019178,2]
[345431311,1734253844320,-500.0,0.00019178,2]
[345431312,1734253844330,-500.0,0.00019178,2]
[345431313,1734253844339,-500.0,0.00019178,2]
[345431314,1734253844349,-500.0,0.00019178,2]
[345431315,1734253844358,-500.0,0.00019178,2]
[345431316,1734253844368,-500.0,0.00019178,2]
[345431317,1734253844377,-500.0,0.00019178,2]
[345431318,1734253844387,-500.0,0.00019178,2]
[345431319,1734253844396,-500.0,0.00019178,2]
[345431320,1734253844405,-182.32,0.00019178,2]
[345431321,1734253844414,-500.0,0.00019178,2]
[345431322,1734253844423,-500.0,0.00019178,2]
[345431323,1734253844432,-500.0,0.00019178,2]
[345431324,1734253844441,-500.0,0.00019178,2]
[345431325,1734253844451,-500.0,0.00019178,2]
[345431326,1734253844461,-500.0,0.00019178,2]
[345431327,1734253844470,-500.0,0.00019178,2]
[345431328,1734253844480,-500.0,0.00019178,2]
[345431329,1734253844489,-500.0,0.00019178,2]
[345431330,1734253844499,-500.0,0.00019178,2]
[345431331,1734253844508,-500.0,0.00019178,2]
[345431332,1734253844517,-500.0,0.00019178,2]
[345431333,1734253844526,-500.0,0.00019178,2]
[345431334,1734253844536,-500.0,0.00019178,2]
[345431335,1734253844545,-500.0,0.00019178,2]
[345431336,1734253844555,-500.0,0.00019178,2]
[345431337,1734253844565,-500.0,0.00019178,2]
[345431338,1734253844585,-500.0,0.00019178,2]
[345431339,1734253844596,-500.0,0.00019178,2]
[345431340,1734253844605,-500.0,0.00019178,2]
[345431341,1734253844615,-500.0,0.00019178,2]
[345431342,1734253844624,-500.0,0.00019178,2]
[345431343,1734253844633,-500.0,0.00019178,2]
[345431344,1734253844642,-500.0,0.00019178,2]
[345431345,1734253844652,-500.0,0.00019178,2]
[345431346,1734253844661,-500.0,0.00019178,2]
[345431347,1734253844851,-500.0,0.00019178,2]
[345431348,1734253844861,-500.0,0.00019178,2]
[345431349,1734253844871,-500.0,0.00019178,2]
[345431350,1734253844880,-500.0,0.00019178,2]
[345431351,1734253844890,-500.0,0.00019178,2]
[345431352,1734253844900,-500.0,0.00019178,2]
[345431353,1734253844910,-500.0,0.00019178,2]
[345431354,1734253844920,-500.0,0.00019178,2]
[345431355,1734253844929,-500.0,0.00019178,2]
[345431356,1734253844939,-500.0,0.00019178,2]
[345431357,1734253844949,-500.0,0.00019178,2]
[345431358,1734253844958,-500.0,0.00019178,2]
[345431359,1734253844967,-292.1,0.00019178,2]
[345431360,1734253844977,-500.0,0.00019178,2]
[345431361,1734253844986,-500.0,0.00019178,2]
[345431362,1734253844996,-500.0,0.00019178,2]
[345431363,1734253845006,-500.0,0.00019178,2]
[345431364,1734253845014,-500.0,0.00019178,2]
[345431365,1734253845023,-500.0,0.00019178,2]
[345431366,1734253845032,-500.0,0.00019178,2]
[345431367,1734253845041,-500.0,0.00019178,2]
[345431368,1734253845051,-500.0,0.00019178,2]
[345431369,1734253845061,-500.0,0.00019178,2]
[345431370,1734253845071,-500.0,0.00019178,2]
[345431371,1734253845080,-500.0,0.00019178,2]
[345431372,1734253845090,-500.0,0.00019178,2]
[345431373,1734253845100,-500.0,0.00019178,2]
[345431374,1734253845109,-500.0,0.00019178,2]
[345431375,1734253845119,-500.0,0.00019178,2]
[345431376,1734253845128,-500.0,0.00019178,2]
[345431377,1734253845138,-500.0,0.00019178,2]
[345431378,1734253845147,-500.0,0.00019178,2]
[345431379,1734253845156,-500.0,0.00019178,2]
[345431380,1734253845165,-500.0,0.00019178,2]
[345431381,1734253845175,-500.0,0.00019178,2]
[345431382,1734253845185,-500.0,0.00019178,2]
[345431383,1734253845195,-500.0,0.00019178,2]
[345431384,1734253845205,-500.0,0.00019178,2]
[345431385,1734253845215,-500.0,0.00019178,2]
[345431386,1734253845225,-500.0,0.00019178,2]
[345431387,1734253845235,-500.0,0.00019178,2]
[345431388,1734253845245,-500.0,0.00019178,2]
[345431389,1734253845254,-500.0,0.00019178,2]
[345431390,1734253845264,-500.0,0.00019178,2]
[345431391,1734253845273,-500.0,0.00019178,2]
[345431392,1734253845283,-500.0,0.00019178,2]
[345431393,1734253845292,-500.0,0.00019178,2]
[345431394,1734253845302,-500.0,0.00019178,2]
[345431395,1734253845311,-500.0,0.00019178,2]
[345431396,1734253845319,-500.0,0.00019178,2]
[345431397,1734253845329,-500.0,0.00019178,2]
[345431398,1734253845339,-500.0,0.00019178,2]
[345431399,1734253845348,-500.0,0.00019178,2]
[345431400,1734253845357,-500.0,0.00019178,2]
[345431401,1734253845367,-500.0,0.00019178,2]
[345431402,1734253845376,-500.0,0.00019178,2]
[345431403,1734253845385,-500.0,0.00019178,2]
[345431404,1734253845394,-500.0,0.00019178,2]
[345431405,1734253845404,-500.0,0.00019178,2]
[345431406,1734253845414,-500.0,0.00019178,2]
[345431407,1734253845423,-500.0,0.00019178,2]
[345431408,1734253845434,-500.0,0.00019178,2]
[345431409,1734253845443,-500.0,0.00019178,2]
[345431410,1734253845453,-503.46835808,0.00019178,2]
[345431411,1734253845463,-530.16,0.00019178,2]
[345431412,1734253845472,-530.16,0.00019178,2]
[345431413,1734253845480,-530.16,0.00019178,2]
[345431414,1734253845489,-530.16,0.00019178,2]
[345431415,1734253845498,-530.16,0.00019178,2]
[345431416,1734253845507,-530.16,0.00019178,2]
[345431417,1734253845516,-530.16,0.00019178,2]
[345431418,1734253845525,-500.0,0.00019178,2]
[345431419,1734253845534,-500.0,0.00019178,2]
[345431420,1734253845543,-500.0,0.00019178,2]
[345431421,1734253845552,-500.0,0.00019178,2]
[345431422,1734253845562,-500.0,0.00019178,2]
[345431423,1734253845577,-500.0,0.00019178,2]
[345431424,1734253845586,-500.0,0.00019178,2]
[345431425,1734253845596,-500.0,0.00019178,2]
[345431426,1734253845606,-500.0,0.00019178,2]
[345431427,1734253845615,-500.0,0.00019178,2]
[345431428,1734253845625,-500.0,0.00019178,2]
[345431429,1734253845634,-500.0,0.00019178,2]
[345431430,1734253845644,-500.0,0.00019178,2]
[345431431,1734253845654,-500.0,0.00019178,2]
[345431432,1734253845663,-500.0,0.00019178,2]
[345431433,1734253845673,-364.7,0.00019178,2]
[345431434,1734253845683,-500.0,0.00019178,2]
[345431435,1734253845692,-500.0,0.00019178,2]
[345431436,1734253845702,-500.0,0.00019178,2]
[345431437,1734253845713,-500.0,0.00019178,2]
[345431438,1734253845723,-500.0,0.00019178,2]
[345431439,1734253845732,-500.0,0.00019178,2]
[345431441,1734253845742,-500.0,0.00019178,2]
[345431442,1734253845751,-500.0,0.00019178,2]
[345431444,1734253845761,-500.0,0.00019178,2]
[345431446,1734253845771,-576.08,0.00019178,2]
[345431448,1734253845780,-500.0,0.00019178,2]
[345431450,1734253845790,-500.0,0.00019178,2]
[345431451,1734253845799,-500.0,0.00019178,2]
[345431452,1734253845808,-500.0,0.00019178,2]
[345431453,1734253845818,-469.65,0.00019178,2]
[345431454,1734253845827,-500.0,0.00019178,2]
[345431455,1734253845837,-500.0,0.00019178,2]
[345431456,1734253845846,-500.0,0.00019178,2]
[345431457,1734253845855,-500.0,0.00019178,2]
[345431458,1734253845866,-500.0,0.00019178,2]
[345431459,1734253845876,-500.0,0.00019178,2]
[345431460,1734253845886,-500.0,0.00019178,2]
[345431461,1734253845896,-500.0,0.00019178,2]
[345431462,1734253845906,-500.0,0.00019178,2]
[345431463,1734253845915,-647.28,0.00019178,2]
[345431464,1734253845925,-500.0,0.00019178,2]
[345431465,1734253845935,-500.0,0.00019178,2]
[345431466,1734253845944,-500.0,0.00019178,2]
[345431467,1734253845954,-500.0,0.00019178,2]
[345431468,1734253845964,-500.0,0.00019178,2]
[345431469,1734253845973,-500.0,0.00019178,2]
[345431470,1734253845983,-500.0,0.00019178,2]
[345431471,1734253845993,-500.0,0.00019178,2]
[345431472,1734253846003,-500.0,0.00019178,2]
[345431473,1734253846012,-500.0,0.00019178,2]
[345431474,1734253846022,-292.23,0.00019178,2]
[345431475,1734253846032,-500.0,0.00019178,2]
[345431476,1734253846041,-500.0,0.00019178,2]
[345431477,1734253846051,-500.0,0.00019178,2]
[345431478,1734253846061,-500.0,0.00019178,2]
[345431479,1734253846071,-500.0,0.00019178,2]
[345431480,1734253846081,-571.94,0.00019178,2]
[345431481,1734253846091,-500.0,0.00019178,2]
[345431482,1734253846100,-1820.4096,0.00019178,2]
[345431483,1734253846110,-500.0,0.00019178,2]
[345431484,1734253846120,-500.0,0.00019178,2]
[345431485,1734253846129,-500.0,0.00019178,2]
[345431486,1734253846138,-500.0,0.00019178,2]
[345431487,1734253846148,-500.0,0.00019178,2]
[345431488,1734253846157,-1150.26,0.00019178,2]
[345431489,1734253846167,-500.0,0.00019178,2]
[345431490,1734253846176,-500.0,0.00019178,2]
[345431491,1734253846185,-500.0,0.00019178,2]
[345431492,1734253846197,-500.0,0.00019178,2]
[345431493,1734253846208,-500.0,0.00019178,2]
[345431494,1734253846218,-500.0,0.00019178,2]
[345431495,1734253846228,-500.0,0.00019178,2]
[345431496,1734253846238,-530.03,0.00019178,2]
[345431497,1734253846247,-500.0,0.00019178,2]
[345431498,1734253846256,-500.0,0.00019178,2]
[345431499,1734253846266,-500.0,0.00019178,2]
[345431500,1734253846276,-500.0,0.00019178,2]
[345431501,1734253846286,-500.0,0.00019178,2]
[345431502,1734253846295,-500.0,0.00019178,2]
[345431503,1734253846305,-500.0,0.00019178,2]
[345431504,1734253846315,-1107.11,0.00019178,2]
[345431505,1734253846325,-500.0,0.00019178,2]
[345431506,1734253846335,-500.0,0.00019178,2]
[345431507,1734253846344,-617.21,0.00019178,2]
[345431508,1734253846354,-500.0,0.00019178,2]
[345431509,1734253846364,-500.0,0.00019178,2]
[345431510,1734253846374,-500.0,0.00019178,2]
[345431511,1734253846383,-500.0,0.00019178,2]
[345431512,1734253846393,-500.0,0.00019178,2]
[345431513,1734253846403,-1842.34,0.00019178,2]
[345431514,1734253846412,-633.91,0.00019178,2]
[345431515,1734253846422,-500.0,0.00019178,2]
[345431516,1734253846432,-380.68,0.00019178,2]
[345431517,1734253846441,-500.0,0.00019178,2]
[345431518,1734253846450,-500.0,0.00019178,2]
[345431519,1734253846460,-500.0,0.00019178,2]
[345431520,1734253846474,-500.0,0.00019178,2]
[345431521,1734253846484,-500.0,0.00019178,2]
[345431522,1734253846493,-500.0,0.00019178,2]
[345431523,1734253846503,-500.0,0.00019178,2]
[345431524,1734253846513,-562.35,0.00019178,2]
[345431525,1734253846523,-500.0,0.00019178,2]
[345431526,1734253846532,-500.0,0.00019178,2]
[345431527,1734253846543,-571.39,0.00019178,2]
[345431528,1734253846552,-500.0,0.00019178,2]
[345431529,1734253846562,-4000.0,0.00019178,2]
[345431530,1734253846577,-5000.0,0.00019235,2]
[345431531,1734253846586,-220.0,0.00019236,2]
[345431532,1734253846595,-320.21558228,0.00019236,2]
[345431533,1734253846604,-5198.0,0.000193,2]
[345431534,1734253846615,-320.2155822,0.0001931,2]
[345431535,1734253846625,-950.3812,0.00019334,2]
[345431536,1734253846634,-500.0,0.00019335,3]
[345431537,1734253846644,-500.0,0.00019335,3]
[345431538,1734253846654,-500.0,0.00019335,3]
[345431539,1734253846663,-500.0,0.00019335,3]
[345431540,1734253846673,-500.0,0.00019335,3]
[345431541,1734253846682,-500.0,0.00019335,3]
[345431542,1734253846692,-578.49,0.00019335,3]
[345431543,1734253846702,-595.32,0.00019335,3]
[345431544,1734253846714,-159.128542,0.00019335,3]
[345431545,1734253846730,-202.99988,0.00019335,3]
[345431546,1734253846739,-190.61,0.00019335,3]
[345431547,1734253846749,-500.0,0.00019335,3]
[345431548,1734253846759,-500.0,0.00019335,3]
[345431549,1734253846768,-500.0,0.00019335,3]
[345431550,1734253846778,-948.04,0.00019335,3]
[345431551,1734253846788,-2951.04,0.00019335,3]
[345431552,1734253846797,-500.0,0.00019335,3]
[345431553,1734253846807,-500.0,0.00019335,3]
[345431554,1734253846816,-543.42,0.00019335,3]
[345431555,1734253846826,-733.87,0.00019335,3]
[345431556,1734253846835,-500.0,0.00019335,3]
[345431557,1734253846845,-1038.24,0.00019335,3]
[345431558,1734253846855,-500.0,0.00019335,3]
[345431559,1734253846865,-698.71,0.00019335,3]
[345431560,1734253846874,-843.64,0.00019335,3]
[345431561,1734253846884,-1468.48,0.00019335,3]
[345431562,1734253846893,-500.0,0.00019335,3]
[345431563,1734253846903,-2563.02,0.00019335,3]
[345431564,1734253846913,-500.0,0.00019335,3]
[345431565,1734253846924,-1065.79,0.00019335,3]
[345431566,1734253846934,-3224.21,0.00019335,3]
[345431567,1734253846943,-955.88,0.00019335,3]
[345431568,1734253846953,-569.88,0.00019335,3]
[345431569,1734253846963,-604.51,0.00019335,3]
[345431570,1734253846976,-414.55,0.00019335,3]
[345431571,1734253846986,-1941.88,0.00019335,3]
[345431572,1734253846995,-666.27,0.00019335,3]
[345431573,1734253847005,-1369.54,0.00019335,3]
[345431574,1734253847015,-739.51,0.00019335,3]
[345431575,1734253847024,-901.81,0.00019335,3]
[345431576,1734253847034,-1350.21,0.00019335,3]
[345431577,1734253847044,-22034.0096,0.00019336,2]
[345431578,1734253847054,-500.0,0.00019336,2]
[345431579,1734253847064,-500.0,0.00019336,2]
[345431580,1734253847073,-500.0,0.00019336,2]
[345431581,1734253847083,-500.0,0.00019336,2]
[345431582,1734253847092,-500.0,0.00019336,2]